Cogmind - Beta 17 @@@ ROGUE MODE // 2026.07.02 @ 10:21:44 Player: ldi (hl). (hl) Result: Destroyed by 2G-NVR(R) with Subdweller Laser Performance ------------- Evolutions (0) 0 Regions Visited (2) 400 Robots Destroyed (16) 80 Value Destroyed (364) 364 Prototype IDs (2) 40 Alien Tech Used (0) 0 Bonus (0) 0 TOTAL SCORE: 884 Bonus ------- None Cogmind --------- Core Integrity 0/250 Matter 296/300 Energy 246/265 System Corruption 1% Temperature Cool (6) Movement Core (700) Ox13 Location -10/Subcaves Parts ------- > --- POWER (1) -------- Reinforced Ion Engine > --- PROPULSION (2) --- Subdweller Monowheel Subdweller Monowheel > --- UTILITY (2) ------ Large Storage Unit Light Armor Plating > --- WEAPON (2) ------- Subdweller Laser Subdweller Machine Gun > --- INVENTORY (15) --- Reinforced Ion Engine Reinforced Ion Engine Subdweller Optics Terrain Scanner Terrain Scan Processor Light Armor Plating Spread Laser Spread Laser Spread Laser Subdweller Laser Subdweller Beam Cannon Subdweller Beam Cannon Battle Cannon Grenade Launcher Grenade Launcher Peak State ------------ > --- POWER ------------ Reinforced Ion Engine > --- PROPULSION ------- Light Treads Subdweller Monowheel > --- UTILITY ---------- Large Storage Unit Visual Processing Unit > --- WEAPON ----------- Subdweller Laser Subdweller Beam Cannon > --- INVENTORY -------- Reinforced Ion Engine Reinforced Ion Engine Reinforced Ion Engine Terrain Scanner Terrain Scan Processor Light Armor Plating Light Armor Plating Spread Laser Spread Laser Spread Laser Subdweller Machine Gun Battle Cannon Grenade Launcher Grenade Launcher [Rating: 14] Favorites ----------- Power Reinforced Ion Engine Engine Reinforced Ion Engine Propulsion Subdweller Monowheel Treads Light Treads Wheel Subdweller Monowheel Utility Large Storage Unit Storage Large Storage Unit Processor Visual Processing Unit Protection Light Armor Plating Weapon Subdweller Laser Energy Gun Subdweller Laser Energy Cannon Subdweller Beam Cannon Ballistic Gun Subdweller Machine Gun Launcher Grenade Launcher Build | -11 -10 -10 ------- Run | Yrd Mat Sub Slots Evolved . | . . . Power . | . . . Propulsion . | . . . Utility . | . . . Weapon . | . . . Parts Attached 18 | 5 6 7 Power 3 | 1 1 1 Engine 3 | 1 1 1 Core . | . . . Reactor . | . . . Propulsion 4 | 2 . 2 Treads 2 | 2 . . Leg . | . . . Wheel 2 | . . 2 Hover . | . . . Flight . | . . . Utility 3 | . 2 1 Device . | . . . Storage 1 | . 1 . Processor 1 | . 1 . Hackware . | . . . Protection 1 | . . 1 Artifact . | . . . Weapon 8 | 2 3 3 Energy Gun 5 | 2 2 1 Energy Cannon 1 | . . 1 Ballistic Gun 1 | . . 1 Ballistic Cannon . | . . . Launcher 1 | . 1 . Special Weapon . | . . . Impact Weapon . | . . . Slashing Weapon . | . . . Piercing Weapon . | . . . Special Melee Weapon . | . . . Unidentified Prototypes . | . . . Parts Lost 3 | . . 3 Power . | . . . Propulsion 2 | . . 2 Utility . | . . . Weapon 1 | . . 1 Highest Loss Streak 1 | . . 1 To Critical Strikes . | . . . Average Backups 13 | . 11 14 Power 2 | . 2 2 Propulsion . | . . . Utility 3 | . 2 4 Weapon 7 | . 6 8 Tool/Special . | . . . Unused Backups 16 | . 1 15 Power 4 | . 1 3 Propulsion . | . . . Utility 4 | . . 4 Weapon 8 | . . 8 Tool/Special . | . . . Average Slot Usage (%) 98 | . 97 99 Engine 14 | . 14 14 Treads 11 | . 28 7 Wheel 15 | . . 19 Storage 13 | . 13 14 Processor 6 | . 12 5 Protection 7 | . . 8 Energy Gun 17 | . 28 15 Energy Cannon 1 | . . 1 Ballistic Gun 8 | . . 10 Peak Build Rating 14 | 5 13 14 Average Rating 12 | 3 10 13 On Entrance 6 | . 5 13 Avg Prop Armor Cover (%) 9 | . . 9 Naked Turns . | . . . Heaviest Build 42 | 5 36 42 Greatest Support 40 | 40 40 40 Greatest Overweight (x) 13 | . . 13 Average Overweight (x) 2 | . . 3 Largest Inventory Capacity 15 | 5 15 15 Average Capacity 14 | 5 14 15 Most Carried 15 | 1 15 15 Average Carried 13 | . 11 14 Final Capacity 15 | 5 15 15 Final Carried 15 | 1 15 15 Class Distribution -------------------- 100% | Mutant Dominant Class ---------------- Mutant | -10/Materials Mutant | -10/Subcaves Resources | -11 -10 -10 ----------- Run | Yrd Mat Sub Matter Collected 469 | 250 56 163 Remotely . | . . . Salvage Created 363 | . 128 235 Parts 27 | . 10 17 Haulers Intercepted . | . . . Recyclers Shooed . | . . . Parts Field Recycled . | . . . Retrieved Matter . | . . . Parts Self-Destructed 10 | . . 10 Prevented . | . . . Parts Restored . | . . . Kills | -11 -10 -10 ------- Run | Yrd Mat Sub Combat Hostiles Destroyed 16 | . 7 9 Guns 12 | . 7 5 AOE 3 | . . 3 Classes Destroyed 3 | . 2 1 Swarmer 9 | . 6 3 Grunt 1 | . 1 . Subdweller 6 | . . 6 Best Kill Streak 3 | . 3 3 Combat Bots Only 3 | . 3 3 Max Kills in Single Turn 1 | . 1 1 Gunslinging . | . . . Exploded 1 | . . 1 Melee . | . . . Uniques/NPCs Destroyed . | . . . Combat | -11 -10 -10 -------- Run | Yrd Mat Sub Hostile Shots Fired 88 | . 37 51 Missed 25 | . 13 12 Hits 63 | . 24 39 Projectile 63 | . 24 39 AOE 4 | . . 4 Critical Strikes 2 | . 1 1 Damage Taken 1168 | . 197 971 Core 261 | . 50 211 Absorbed by Shields . | . . . Core Remaining (%) 100 | 100 . . Volleys Fired 59 | . 20 39 Largest 2 | . 2 2 Hottest 145 | . 80 145 Shots Fired 113 | . 40 73 Gun 100 | . 40 60 Cannon 9 | . . 9 Launcher 4 | . . 4 Special . | . . . Kinetic 18 | . . 18 Thermal 91 | . 40 51 Explosive 4 | . . 4 Electromagnetic . | . . . Robot Hit Streak 21 | . 10 21 Robot Miss Streak 4 | . 2 4 Penetration Max . | . . . Secondary Targets 1 | . 1 . Max Gunslinging Chain 1 | . 1 . Shots Hit Robots 76 | . 27 49 Core Hits 35 | . 10 25 Critical Kills 1 | . . 1 Critical Parts Destroyed . | . . . Critical Strikes 4 | . . 4 Meltdown 1 | . . 1 Destroy 3 | . . 3 Melee Attacks . | . . . Impact . | . . . Slashing . | . . . Piercing . | . . . Sneak Attacks . | . . . Combat Hostiles . | . . . Follow-up Attacks . | . . . Damage Inflicted 1387 | . 301 1086 Guns 1092 | . 299 793 Cannons 139 | . . 139 Explosions 154 | . . 154 Melee . | . . . Ramming 2 | . 2 . Kinetic 254 | . . 254 Thermal 977 | . 299 678 Explosive 154 | . . 154 Electromagnetic . | . . . Impact . | . . . Slashing . | . . . Piercing . | . . . Highest Corruption 1 | . 1 1 Average Corruption 1 | . 1 1 Corruption Purged . | . . . Corruption Blocked . | . . . Effects 17 | . 1 16 Message Errors 6 | . 1 5 Matter Fused 1 | . . 1 Heat Flow Errors 4 | . . 4 Energy Discharges 2 | . . 2 Data Loss (minor) 2 | . . 2 Data Loss (major) 2 | . . 2 Overload Shots . | . . . Overflow Damage 6 | . . 6 Projectiles . | . . . Explosions 6 | . . 6 Melee . | . . . Knockbacks . | . . . Impact . | . . . Kinetic . | . . . Secondary . | . . . Self-Inflicted Damage . | . . . Shots . | . . . Rammed 1 | . 1 . Targets Rammed 1 | . 1 . Kicked . | . . . Crushed . | . . . Highest Temperature 247 | . 194 247 Average Temperature 77 | . 68 87 Received Heat Transfer 72 | . 30 42 Effects 1 | . . 1 Interference 1 | . . 1 Siege Activations . | . . . Martial Activations . | . . . Shielding Activations . | . . . Robots Disrupted . | . . . Combat Hostiles . | . . . Robots Corrupted . | . . . Combat Hostiles . | . . . Parts Fried . | . . . Impact Corruptions . | . . . Robots Melted 1 | . . 1 Combat Hostiles 1 | . . 1 Parts Melted 1 | . . 1 Heat Transferred 1530 | . 675 855 Parts Sabotaged . | . . . Parts Stolen . | . . . Parts Stripped . | . . . Power Chain Reactions . | . . . Alert | -11 -10 -10 ------- Run | Yrd Mat Sub Maximum Alert Level . | . . . Low Security (%) 100 | 100 100 . Level 1 . | . . . Level 2 . | . . . Level 3 . | . . . Level 4 . | . . . Level 5 . | . . . High Security . | . . . Max Security . | . . . Peak Influence 130 | . 130 . Initial . | . . . Average 43 | . 49 . Influence Increases 282 | . 212 70 Destroy 0b10 Robot/C 200 | . 140 60 Destroy Leader 40 | . 30 10 Successful Hack 12 | . 12 . Lose Combat Pursuer 30 | . 30 . Influence Decreases 282 | . 149 133 Entered New Map 31 | . . 31 Time Decay 241 | . 149 92 Lost Part 10 | . . 10 Squads Dispatched 2 | . 2 . Investigation 1 | . 1 . Extermination . | . . . Reinforcement 1 | . 1 . Assault . | . . . Garrison . | . . . Intercept . | . . . Searches Triggered . | . . . Construction Impeded . | . . . Haulers Reinforced . | . . . Active Scanning Responses . | . . . Cargo Convoy Interrupts . | . . . Stealth | -11 -10 -10 --------- Run | Yrd Mat Sub Distress Signals 1 | . 1 . Communications Jammed . | . . . Distress Signals . | . . . Times Spotted 28 | . 14 14 Peak Tracking Total 4 | . 4 3 Tactical Retreats 1 | . 1 . Traps | -11 -10 -10 ------- Run | Yrd Mat Sub Traps Triggered 2 | . 1 1 Indirectly . | . . . Trap Hack Attempts . | . . . Triggered . | . . . Disarmed . | . . . Reprogrammed . | . . . Reused . | . . . Traps Extracted . | . . . Installed . | . . . Triggered . | . . . Machines | -11 -10 -10 ---------- Run | Yrd Mat Sub Machines Disabled . | . . . Max in Single Turn . | . . . Machines Repaired . | . . . Machines Dismantled . | . . . Machines Sabotaged . | . . . Overloaded Fab Kills . | . . . Hacking | -11 -10 -10 --------- Run | Yrd Mat Sub Machines Accessed 2 | . 2 . Terminals 2 | . 2 . Fabricators . | . . . Repair Stations . | . . . Recycling Units . | . . . Scanalyzers . | . . . Garrison Access . | . . . Total Hacks 5 | . 5 . Successful 2 | . 2 . Failed 3 | . 3 . Catastrophic 1 | . 1 . Database Lockouts . | . . . Manual 3 | . 3 . Terminals 5 | . 5 . Fabricators . | . . . Repair Stations . | . . . Recycling Units . | . . . Scanalyzers . | . . . Garrison Access . | . . . Terminal Hacks 2 | . 2 . Prototype ID Bank 1 | . 1 . Branch Access Points 1 | . 1 . Fabricator Hacks . | . . . Repair Station Hacks . | . . . Recycling Unit Hacks . | . . . Scanalyzer . | . . . Garrison Access Hacks . | . . . Unauthorized Hacks . | . . . Terminals . | . . . Fabricators . | . . . Repair Stations . | . . . Recycling Units . | . . . Scanalyzers . | . . . Garrison Access . | . . . Data Cores Recovered . | . . . Used . | . . . Hacking Detections 1 | . 1 . Full Trace Events 1 | . 1 . Feedback Events . | . . . Feedback Blocked . | . . . Robot Schematics Acquired . | . . . Robots Built . | . . . Authchips . | . . . Time . | . . . Total Robot Build Rating . | . . . Part Schematics Acquired . | . . . Parts Built . | . . . Authchips . | . . . Time . | . . . Total Part Build Rating . | . . . Part Studies Acquired . | . . . Parts Repaired . | . . . Time . | . . . Parts Recycled . | . . . Recycled Matter . | . . . Retrieved Matter . | . . . Retrieved Components . | . . . Parts Scanalyzed . | . . . Part Schematics Acquired . | . . . Parts Damaged . | . . . Bothacking | -11 -10 -10 ------------ Run | Yrd Mat Sub Used RIF Installer . | . . . Robots Hacked . | . . . Non-combat . | . . . Combat . | . . . Robot Hacks Applied . | . . . Relay Couplers Released . | . . . Fabnet Peak Effective % . | . . . Robots Rewired . | . . . Allies Hacked . | . . . Hacks Repelled . | . . . Allies | -11 -10 -10 -------- Run | Yrd Mat Sub Total Allies . | . . . Largest Group . | . . . Highest-Rated Group . | . . . Highest-Rated Ally . | . . . Total Orders . | . . . Ally Attacks . | . . . Total Damage . | . . . Kills . | . . . Allies Corrupted . | . . . Allies Melted . | . . . Intel | -11 -10 -10 ------- Run | Yrd Mat Sub Active Infowar (turns) 1040 | . 410 630 Optics 1040 | . 410 630 Robot Analysis Total . | . . . Derelict Logs Recovered 1 | . . 1 Drone Launches . | . . . Drone Recoveries . | . . . Exploration | -11 -10 -10 ------------- Run | Yrd Mat Sub Turns Passed 2281 | 73 452 1756 Spaces Moved 905 | 44 213 648 Core 125 | 4 . 121 Treads 394 | 40 213 141 Legs . | . . . Wheels 386 | . . 386 Hover . | . . . Flight . | . . . Fastest Speed 50 | 50 160 120 Average Speed 221 | 150 160 246 Slowest Speed 700 | 160 160 700 Overloaded Moves . | . . . Propulsion Burnouts . | . . . Robots Hopped . | . . . Potential Cave-ins . | . . . Cave-ins Triggered . | . . . Exploration Rate (%) 30 | 4 43 43 Regions Visited 2 Branch Regions 1 Pre-discovered Areas . | . . . Known Exits Taken . | . . . Unknown Exits Taken 2 | 1 1 . Scrap Searched 7 | . . 7 Spaces Dug . | . . . Terrain Destroyed 32 | . . 32 Melee . | . . . Projectile 2 | . . 2 AOE 30 | . . 30 Terrain Rammed . | . . . Walls Destroyed . | . . . Machines Disabled . | . . . Actions | -11 -10 -10 --------- Run | Yrd Mat Sub Total 1063 | 49 283 731 Wait 44 | . 24 20 Move 903 | 43 212 648 Hop . | . . . Pick Up 25 | 1 16 8 Fast Attach 10 | 5 3 2 Attach 2 | . 1 1 Detach . | . . . Swap 8 | . 2 6 Drop 10 | . 4 6 Fire 59 | . 20 39 Melee . | . . . Ram . | . . . Kick . | . . . Crush 1 | . 1 . Escape Stasis . | . . . Rewire 1 | . . 1 Trap . | . . . Miscellaneous . | . . . Route ------- -11/Scrapyard -10/Materials (discovered 3 exits: [*Mat] / Min / [*Sub]) -10/Subcaves History --------- Turn | Location | Event 13 | -11/Scrapyard | Discovered new exit (range 15) 74 | -11/Scrapyard | Entered Materials 247 | -10/Materials | Discovered new exit (range 8) 318 | -10/Materials | Build established: Mutant 407 | -10/Materials | Identified exit to Mines 509 | -10/Materials | Discovered new exit (range 6) 526 | -10/Materials | Entered Subcaves 527 | -10/Subcaves | Approached by a straggling Scientist 555 | -10/Subcaves | Learned Materials security intel 980 | -10/Subcaves | Shifting Twisted Machinery released Battle Cannon 981 | -10/Subcaves | Shifting Twisted Machinery released Sub. Shrapnel Launcher 1035 | -10/Subcaves | Disturbed a concealed Subdweller 1053 | -10/Subcaves | Shifting Twisted Machinery released Sub. Beam Cannon 1065 | -10/Subcaves | Shifting Twisted Machinery released Mak. Sword 1109 | -10/Subcaves | Core integrity fell below 50% 2276 | -10/Subcaves | A Subdweller sparked back to life 2276 | -10/Subcaves | A Subdweller sparked back to life 2276 | -10/Subcaves | A Subdweller sparked back to life 2277 | -10/Subcaves | Core integrity fell below 20% 2282 | -10/Subcaves | Destroyed by 2G-NVR(R) with Subdweller Laser Last Messages --------------- 01321_ Critical hit (Impale). 01324_ Searching scrap... 01324_ Found Sub. Laser. 01324_ Found 45 Matter. 01327_ Acquired Sub. Laser. 01429_ Sub. Monowheel shoots sparks and powers down. 01446_ System corrupted: Component data lost. 01480_ System corrupted: Matter fused (-5). 01809_ W:5DD&&T